[Event "*** Titled Tuesday Blitz"]
[Site "Chess.com"]
[Date "2019.11.05"]
[Round "7"]
[White "TregubovP"]
[Black "gmcorrales"]
[Result "1-0"]
[WhiteElo "2576"]
[BlackElo "2839"]
[TimeControl "180+2"]
[EndTime "14:39:35 PST"]
[Termination "TregubovP won by resignation"]

1. e4 {[%clk 0:03:01.9]} 1... c5 {[%clk 0:02:59.3]} 2. Nf3 {[%clk 0:03:02.2]}
2... d6 {[%clk 0:03:00.3]} 3. c3 {[%clk 0:03:02.2]} 3... Nf6 {[%clk 0:03:00.5]}
4. Be2 {[%clk 0:03:03.3]} 4... g6 {[%clk 0:03:00.8]} 5. O-O {[%clk 0:03:03.6]}
5... Bg7 {[%clk 0:03:02]} 6. Bb5+ {[%clk 0:03:04.5]} 6... Bd7 {[%clk 0:02:59.8]}
7. Bxd7+ {[%clk 0:03:04.6]} 7... Nbxd7 {[%clk 0:02:59.4]} 8. Re1 {[%clk
0:03:05.6]} 8... e5 {[%clk 0:02:47.8]} 9. d4 {[%clk 0:03:05.5]} 9... cxd4 {[%clk
0:02:48.5]} 10. cxd4 {[%clk 0:03:06.7]} 10... exd4 {[%clk 0:02:49.7]} 11. Qxd4
{[%clk 0:02:55.5]} 11... Qb6 {[%clk 0:02:46.5]} 12. Nc3 {[%clk 0:02:52.6]} 12...
O-O {[%clk 0:02:44.9]} 13. Bf4 {[%clk 0:02:42.1]} 13... Rfe8 {[%clk 0:01:55.7]}
14. Qxb6 {[%clk 0:02:22.8]} 14... Nxb6 {[%clk 0:01:56.7]} 15. Rad1 {[%clk
0:02:23.7]} 15... Nc4 {[%clk 0:01:54.1]} 16. b3 {[%clk 0:02:22.3]} 16... Nh5
{[%clk 0:01:55.2]} 17. Nd5 {[%clk 0:02:16.3]} 17... Nb2 {[%clk 0:01:55.6]} 18.
Rd2 {[%clk 0:01:31.7]} 18... Nxf4 {[%clk 0:01:48.6]} 19. Nxf4 {[%clk 0:01:32.7]}
19... Bc3 {[%clk 0:01:48.6]} 20. Ree2 {[%clk 0:01:34]} 20... Bxd2 {[%clk
0:01:43.6]} 21. Rxd2 {[%clk 0:01:35.1]} 21... Rxe4 {[%clk 0:00:50.5]} 22. g3
{[%clk 0:01:29.3]} 22... Na4 {[%clk 0:00:43.9]} 23. bxa4 {[%clk 0:01:29.5]}
23... Rxa4 {[%clk 0:00:45.8]} 24. Nd5 {[%clk 0:01:22.2]} 24... Kg7 {[%clk
0:00:43]} 25. Kg2 {[%clk 0:01:22.7]} 25... Rc8 {[%clk 0:00:43.8]} 26. h4 {[%clk
0:01:21]} 26... b5 {[%clk 0:00:39.5]} 27. Nd4 {[%clk 0:01:08.8]} 27... Rc5
{[%clk 0:00:38.1]} 28. Nb3 {[%clk 0:01:07.3]} 28... Rcc4 {[%clk 0:00:38.4]} 29.
h5 {[%clk 0:01:04.4]} 29... gxh5 {[%clk 0:00:39.1]} 30. Ne3 {[%clk 0:01:04.4]}
30... Rc6 {[%clk 0:00:26.5]} 31. Nf5+ {[%clk 0:01:04.7]} 31... Kf6 {[%clk
0:00:27.3]} 32. Nxd6 {[%clk 0:01:01.8]} 32... h4 {[%clk 0:00:27.3]} 33. Nxb5
{[%clk 0:01:00]} 33... hxg3 {[%clk 0:00:27.9]} 34. fxg3 {[%clk 0:00:54.4]} 34...
h5 {[%clk 0:00:29.2]} 35. Kh3 {[%clk 0:00:53.5]} 35... Rcc4 {[%clk 0:00:25.9]}
36. Nd6 {[%clk 0:00:51.9]} 36... Rg4 {[%clk 0:00:23]} 37. Rf2+ {[%clk
0:00:48.9]} 37... Ke6 {[%clk 0:00:22.2]} 38. Nxf7 {[%clk 0:00:46.8]} 38... Rgc4
{[%clk 0:00:18.3]} 39. Ng5+ {[%clk 0:00:45.8]} 39... Kd6 {[%clk 0:00:17.5]} 40.
Nf3 {[%clk 0:00:42.4]} 40... Kc7 {[%clk 0:00:15.5]} 41. Rd2 {[%clk 0:00:41.6]}
41... Rab4 {[%clk 0:00:14.5]} 42. Ne5 {[%clk 0:00:38.4]} 42... Re4 {[%clk
0:00:14.8]} 43. Nd3 {[%clk 0:00:33.4]} 43... Rbc4 {[%clk 0:00:16]} 44. Nf2
{[%clk 0:00:18.7]} 44... Re3 {[%clk 0:00:15.4]} 45. Nd4 {[%clk 0:00:13.6]} 45...
a5 {[%clk 0:00:13]} 46. Nf5 {[%clk 0:00:14.3]} 46... Ra3 {[%clk 0:00:12.9]} 47.
Nd3 {[%clk 0:00:15]} 47... Rcc3 {[%clk 0:00:13.1]} 48. Nf4 {[%clk 0:00:13.6]}
48... Rf3 {[%clk 0:00:11.1]} 49. Kh4 {[%clk 0:00:11]} 49... Rf1 {[%clk 0:00:11]}
50. Kxh5 {[%clk 0:00:11.8]} 50... Ra1 {[%clk 0:00:12]} 51. Rc2+ {[%clk 0:00:11]}
51... Kb8 {[%clk 0:00:12.6]} 52. Nd6 {[%clk 0:00:11.5]} 52... R1xa2 {[%clk
0:00:12.9]} 53. Rc8+ {[%clk 0:00:12.9]} 53... Ka7 {[%clk 0:00:13.8]} 54. g4
{[%clk 0:00:14]} 54... Rd2 {[%clk 0:00:13.7]} 55. Nc4 {[%clk 0:00:13.5]} 55...
Rh2+ {[%clk 0:00:14.9]} 56. Kg6 {[%clk 0:00:14.2]} 56... Rc3 {[%clk 0:00:16.8]}
57. Nd5 {[%clk 0:00:14.3]} 57... Rc1 {[%clk 0:00:16.9]} 58. Rc7+ {[%clk
0:00:14.4]} 58... Kb8 {[%clk 0:00:18.1]} 59. Rc6 {[%clk 0:00:14]} 59... Rhc2
{[%clk 0:00:18.9]} 60. Nde3 {[%clk 0:00:14]} 60... a4 {[%clk 0:00:19.7]} 61.
Nxc2 {[%clk 0:00:14.5]} 61... Rxc2 {[%clk 0:00:21.6]} 62. Rb6+ {[%clk
0:00:08.8]} 62... Ka7 {[%clk 0:00:22.7]} 63. Rb4 {[%clk 0:00:09.9]} 63... a3
{[%clk 0:00:20.7]} 64. Nxa3 {[%clk 0:00:10.1]} 64... Rg2 {[%clk 0:00:21.8]} 65.
g5 {[%clk 0:00:10.6]} 65... Ka6 {[%clk 0:00:23.7]} 66. Kf6 {[%clk 0:00:11]}
66... Ka5 {[%clk 0:00:25.6]} 67. Rf4 {[%clk 0:00:11]} 67... Kb6 {[%clk
0:00:25.4]} 68. g6 {[%clk 0:00:11.5]} 68... Kc7 {[%clk 0:00:27.3]} 69. g7 {[%clk
0:00:12.6]} 69... Kd7 {[%clk 0:00:28.2]} 70. Kf7 {[%clk 0:00:13.9]} 70... Kd6
{[%clk 0:00:29.5]} 71. g8=Q {[%clk 0:00:14.6]} 71... Ke5 {[%clk 0:00:31.4]} 72.
Qxg2 {[%clk 0:00:14.7]} 1-0

[Event "*** Titled Tuesday Blitz"]
[Site "Chess.com"]
[Date "2019.11.05"]
[Round "7"]
[White "Irishchessman16"]
[Black "vova-79"]
[Result "1-0"]
[WhiteElo "2204"]
[BlackElo "2374"]
[TimeControl "180+2"]
[EndTime "14:40:03 PST"]
[Termination "Irishchessman16 won on time"]

1. d4 {[%clk 0:03:00.9]} 1... d5 {[%clk 0:02:59.3]} 2. c4 {[%clk 0:03:01.4]}
2... c6 {[%clk 0:02:59.4]} 3. Nc3 {[%clk 0:03:00.3]} 3... Nf6 {[%clk 0:02:59.8]}
4. Nf3 {[%clk 0:03:00.7]} 4... e6 {[%clk 0:03:00]} 5. e3 {[%clk 0:02:59.2]} 5...
Nbd7 {[%clk 0:02:59.7]} 6. Qc2 {[%clk 0:02:59.6]} 6... Bd6 {[%clk 0:02:59.7]} 7.
Bd3 {[%clk 0:02:59.4]} 7... O-O {[%clk 0:02:59.3]} 8. O-O {[%clk 0:03:00.4]}
8... dxc4 {[%clk 0:02:59.9]} 9. Bxc4 {[%clk 0:02:59.7]} 9... b5 {[%clk
0:03:01.8]} 10. Be2 {[%clk 0:03:00.5]} 10... a6 {[%clk 0:03:01.7]} 11. e4 {[%clk
0:02:38.3]} 11... e5 {[%clk 0:03:00.3]} 12. Rd1 {[%clk 0:02:36.8]} 12... Qc7
{[%clk 0:02:40.3]} 13. h3 {[%clk 0:02:17.9]} 13... Bb7 {[%clk 0:02:29.9]} 14.
Bg5 {[%clk 0:02:13.7]} 14... exd4 {[%clk 0:02:21.3]} 15. Nxd4 {[%clk 0:02:12.3]}
15... Rfe8 {[%clk 0:02:09.4]} 16. Nf5 {[%clk 0:01:56.3]} 16... Bf8 {[%clk
0:02:07.2]} 17. Rac1 {[%clk 0:01:52.6]} 17... c5 {[%clk 0:02:00.6]} 18. Nd5
{[%clk 0:01:52.7]} 18... Nxd5 {[%clk 0:01:57.9]} 19. exd5 {[%clk 0:01:53.5]}
19... f6 {[%clk 0:01:39]} 20. Be3 {[%clk 0:01:42.9]} 20... Rad8 {[%clk
0:01:31.5]} 21. d6 {[%clk 0:01:39.6]} 21... Qc8 {[%clk 0:01:28.3]} 22. Qb3+
{[%clk 0:01:19.7]} 22... c4 {[%clk 0:01:26.6]} 23. Bxc4+ {[%clk 0:01:19.6]}
23... bxc4 {[%clk 0:01:14.8]} 24. Rxc4 {[%clk 0:01:21.2]} 24... Qa8 {[%clk
0:01:15.2]} 25. Rc8+ {[%clk 0:00:53.5]} 25... Bd5 {[%clk 0:01:02.8]} 26. Rxd5
{[%clk 0:00:54]} 26... Rxc8 {[%clk 0:01:00.7]} 27. Ne7+ {[%clk 0:00:48.6]} 27...
Kh8 {[%clk 0:00:35.1]} 28. Qd3 {[%clk 0:00:20.7]} 28... Ne5 {[%clk 0:00:25.7]}
29. Rxe5 {[%clk 0:00:18.1]} 29... fxe5 {[%clk 0:00:24.4]} 30. Nxc8 {[%clk
0:00:17.1]} 30... Rxc8 {[%clk 0:00:23.8]} 31. d7 {[%clk 0:00:18.5]} 31... Rb8
{[%clk 0:00:19.6]} 32. Bg5 {[%clk 0:00:20]} 32... h6 {[%clk 0:00:12.3]} 33. d8=Q
{[%clk 0:00:18.6]} 33... Rxd8 {[%clk 0:00:11.5]} 34. Qxd8 {[%clk 0:00:16.8]}
34... Qxd8 {[%clk 0:00:09.9]} 35. Bxd8 {[%clk 0:00:18.7]} 35... Kg8 {[%clk
0:00:10.3]} 36. Kf1 {[%clk 0:00:18.4]} 36... Kf7 {[%clk 0:00:10.1]} 37. Ke2
{[%clk 0:00:19.7]} 37... e4 {[%clk 0:00:10.5]} 38. Bb6 {[%clk 0:00:20]} 38...
Ke6 {[%clk 0:00:10.2]} 39. Ke3 {[%clk 0:00:19.9]} 39... Kd5 {[%clk 0:00:09.9]}
40. b3 {[%clk 0:00:21]} 40... g6 {[%clk 0:00:09.4]} 41. f3 {[%clk 0:00:21.8]}
41... exf3 {[%clk 0:00:09.3]} 42. Kxf3 {[%clk 0:00:22.9]} 42... h5 {[%clk
0:00:09.5]} 43. Be3 {[%clk 0:00:23.7]} 43... Be7 {[%clk 0:00:08.7]} 44. Kf4
{[%clk 0:00:20.3]} 44... Bd8 {[%clk 0:00:07.2]} 45. Kf3 {[%clk 0:00:20.9]} 45...
Be7 {[%clk 0:00:07.5]} 46. g4 {[%clk 0:00:22]} 46... hxg4+ {[%clk 0:00:04.6]}
47. Kxg4 {[%clk 0:00:23.9]} 47... Bf6 {[%clk 0:00:04.6]} 48. Bg5 {[%clk
0:00:22.2]} 48... Bg7 {[%clk 0:00:04.9]} 49. Be3 {[%clk 0:00:22.5]} 49... Bf6
{[%clk 0:00:04.8]} 50. Bg5 {[%clk 0:00:20.6]} 50... Bg7 {[%clk 0:00:05.1]} 51.
Be7 {[%clk 0:00:19.9]} 51... Bh6 {[%clk 0:00:05.2]} 52. Bf6 {[%clk 0:00:19.8]}
52... Kc5 {[%clk 0:00:04.5]} 53. Bc3 {[%clk 0:00:17.9]} 53... Kd5 {[%clk
0:00:04.7]} 54. Kf3 {[%clk 0:00:15]} 54... Bf8 {[%clk 0:00:03.7]} 55. Ke3 {[%clk
0:00:15.1]} 55... Bc5+ {[%clk 0:00:03.2]} 56. Kd3 {[%clk 0:00:15.2]} 56... Be7
{[%clk 0:00:05.1]} 57. a4 {[%clk 0:00:13.9]} 57... Bd6 {[%clk 0:00:03.2]} 58.
Bd4 {[%clk 0:00:13.2]} 58... Be7 {[%clk 0:00:02.7]} 59. Bc3 {[%clk 0:00:12.1]}
59... Bd6 {[%clk 0:00:02.1]} 60. Bd2 {[%clk 0:00:12.8]} 1-0

[Event "*** Titled Tuesday Blitz"]
[Site "Chess.com"]
[Date "2019.11.05"]
[Round "7"]
[White "RitvarsReimanis"]
[Black "MikaelyanArman"]
[Result "1/2-1/2"]
[WhiteElo "2610"]
[BlackElo "2732"]
[TimeControl "180+2"]
[EndTime "14:40:08 PST"]
[Termination "Game drawn by repetition"]

1. d4 {[%clk 0:03:01.9]} 1... Nf6 {[%clk 0:03:00.2]} 2. c4 {[%clk 0:03:03.1]}
2... g6 {[%clk 0:03:01.3]} 3. Nc3 {[%clk 0:03:03.8]} 3... Bg7 {[%clk 0:03:02.8]}
4. e4 {[%clk 0:03:05.1]} 4... O-O {[%clk 0:03:04]} 5. Be2 {[%clk 0:03:06.3]}
5... d6 {[%clk 0:03:04.7]} 6. Nf3 {[%clk 0:03:07.8]} 6... c5 {[%clk 0:03:04.6]}
7. O-O {[%clk 0:03:06]} 7... cxd4 {[%clk 0:03:05.2]} 8. Nxd4 {[%clk 0:03:06.6]}
8... Nc6 {[%clk 0:03:06.7]} 9. Be3 {[%clk 0:03:06.8]} 9... Bd7 {[%clk
0:03:05.6]} 10. Rc1 {[%clk 0:03:01.4]} 10... Nxd4 {[%clk 0:03:05.8]} 11. Bxd4
{[%clk 0:03:01.9]} 11... Bc6 {[%clk 0:03:07.1]} 12. f3 {[%clk 0:03:02.7]} 12...
a5 {[%clk 0:03:08.1]} 13. Nd5 {[%clk 0:03:00.6]} 13... Nd7 {[%clk 0:02:54.6]}
14. Bxg7 {[%clk 0:02:53.2]} 14... Kxg7 {[%clk 0:02:56.5]} 15. Qd4+ {[%clk
0:02:54.3]} 15... e5 {[%clk 0:02:57.1]} 16. Qd2 {[%clk 0:02:48.8]} 16... Nc5
{[%clk 0:02:57.9]} 17. Ne3 {[%clk 0:02:40]} 17... Ne6 {[%clk 0:02:57.7]} 18.
Rfd1 {[%clk 0:02:36.2]} 18... Qb6 {[%clk 0:02:43.6]} 19. Kh1 {[%clk 0:02:37.2]}
19... Nd4 {[%clk 0:02:36.8]} 20. Nc2 {[%clk 0:02:27.4]} 20... Nxc2 {[%clk
0:01:37.5]} 21. Rxc2 {[%clk 0:02:27.1]} 21... Rad8 {[%clk 0:01:37.8]} 22. Rc3
{[%clk 0:02:19.4]} 22... h6 {[%clk 0:01:37.2]} 23. Rd3 {[%clk 0:02:16.6]} 23...
Rfe8 {[%clk 0:01:31.7]} 24. Bf1 {[%clk 0:02:04]} 24... Re6 {[%clk 0:01:28.3]}
25. b3 {[%clk 0:02:00.6]} 25... g5 {[%clk 0:01:23.1]} 26. Qe3 {[%clk 0:01:46.8]}
26... Qxe3 {[%clk 0:00:48.5]} 27. Rxe3 {[%clk 0:01:47.7]} 27... b6 {[%clk
0:00:49.8]} 28. Rc3 {[%clk 0:01:43.5]} 28... Kf6 {[%clk 0:00:49.5]} 29. c5
{[%clk 0:01:22.8]} 29... b5 {[%clk 0:00:50.4]} 30. a3 {[%clk 0:01:08.5]} 30...
Ke7 {[%clk 0:00:44.7]} 31. b4 {[%clk 0:01:00.5]} 31... Rd7 {[%clk 0:00:21.2]}
32. Kg1 {[%clk 0:00:56.5]} 32... axb4 {[%clk 0:00:21.4]} 33. axb4 {[%clk
0:00:57.2]} 33... Rg6 {[%clk 0:00:21.7]} 34. Kf2 {[%clk 0:00:53.2]} 34... g4
{[%clk 0:00:20.7]} 35. Rd2 {[%clk 0:00:32.7]} 35... h5 {[%clk 0:00:19.6]} 36.
Be2 {[%clk 0:00:28.9]} 36... gxf3 {[%clk 0:00:17.9]} 37. gxf3 {[%clk 0:00:30.8]}
37... h4 {[%clk 0:00:18.5]} 38. Bf1 {[%clk 0:00:31.8]} 38... Rf6 {[%clk
0:00:11.4]} 39. Ke3 {[%clk 0:00:31.7]} 39... Rd8 {[%clk 0:00:07.1]} 40. cxd6+
{[%clk 0:00:29.4]} 40... Rdxd6 {[%clk 0:00:06.5]} 41. Rxd6 {[%clk 0:00:26.5]}
41... Kxd6 {[%clk 0:00:08.4]} 42. Rc5 {[%clk 0:00:23.9]} 42... Rg6 {[%clk
0:00:08.2]} 43. Bxb5 {[%clk 0:00:18.3]} 43... Bxb5 {[%clk 0:00:09.3]} 44. Rxb5
{[%clk 0:00:19.6]} 44... Rg2 {[%clk 0:00:11.2]} 45. Rb6+ {[%clk 0:00:16.9]}
45... Ke7 {[%clk 0:00:09.7]} 46. Rb7+ {[%clk 0:00:16.4]} 46... Ke6 {[%clk
0:00:09]} 47. Rb6+ {[%clk 0:00:17.4]} 47... Ke7 {[%clk 0:00:10.1]} 48. Rb8
{[%clk 0:00:18.9]} 48... Rxh2 {[%clk 0:00:10.5]} 49. Rh8 {[%clk 0:00:19.2]}
49... Rh1 {[%clk 0:00:06.2]} 50. Kf2 {[%clk 0:00:18.7]} 50... Rh2+ {[%clk
0:00:04.9]} 51. Ke3 {[%clk 0:00:16.9]} 51... Kd6 {[%clk 0:00:04.2]} 52. Rh6+
{[%clk 0:00:15.3]} 52... Kd7 {[%clk 0:00:05.2]} 53. b5 {[%clk 0:00:15.9]} 53...
Rb2 {[%clk 0:00:05.2]} 54. Rxh4 {[%clk 0:00:15]} 54... Rb3+ {[%clk 0:00:06.1]}
55. Kf2 {[%clk 0:00:15.5]} 55... Rxb5 {[%clk 0:00:08]} 56. Rh6 {[%clk
0:00:15.5]} 56... Ke7 {[%clk 0:00:08.9]} 57. Kg3 {[%clk 0:00:16.5]} 57... f6
{[%clk 0:00:09.7]} 58. Rh7+ {[%clk 0:00:17.2]} 58... Ke6 {[%clk 0:00:11]} 59.
Ra7 {[%clk 0:00:19.1]} 59... Rb1 {[%clk 0:00:11.4]} 60. Kg2 {[%clk 0:00:20.2]}
60... Rb2+ {[%clk 0:00:10.8]} 61. Kg3 {[%clk 0:00:20.8]} 61... Rb1 {[%clk
0:00:12.2]} 62. Kg2 {[%clk 0:00:21.8]} 62... Kd6 {[%clk 0:00:13.5]} 63. Kf2
{[%clk 0:00:20.8]} 63... Rb6 {[%clk 0:00:11.2]} 64. Kg3 {[%clk 0:00:21.1]} 64...
Ke6 {[%clk 0:00:11.7]} 65. Kg4 {[%clk 0:00:19.5]} 65... Rb3 {[%clk 0:00:11.6]}
66. Kg3 {[%clk 0:00:12.4]} 66... Rc3 {[%clk 0:00:11]} 67. Kg4 {[%clk 0:00:11.9]}
67... Rb3 {[%clk 0:00:12]} 68. Kg3 {[%clk 0:00:13.2]} 68... Rb1 {[%clk 0:00:13]}
1/2-1/2

[Event "*** Titled Tuesday Blitz"]
[Site "Chess.com"]
[Date "2019.11.05"]
[Round "7"]
[White "misha_chessone"]
[Black "DinaBelenkaya"]
[Result "0-1"]
[WhiteElo "2417"]
[BlackElo "2330"]
[TimeControl "180+2"]
[EndTime "14:40:11 PST"]
[Termination "DinaBelenkaya won by resignation"]

1. d4 {[%clk 0:03:00.9]} 1... d5 {[%clk 0:03:00.5]} 2. c4 {[%clk 0:03:01.8]}
2... dxc4 {[%clk 0:03:00.1]} 3. e3 {[%clk 0:03:00.4]} 3... Nf6 {[%clk
0:02:59.3]} 4. Bxc4 {[%clk 0:03:00.5]} 4... e6 {[%clk 0:02:55.6]} 5. Nf3 {[%clk
0:03:01]} 5... a6 {[%clk 0:02:56.1]} 6. a4 {[%clk 0:03:00.2]} 6... c5 {[%clk
0:02:56.8]} 7. O-O {[%clk 0:02:58.4]} 7... Nc6 {[%clk 0:02:57.6]} 8. Nc3 {[%clk
0:02:55.1]} 8... Bd6 {[%clk 0:02:55.6]} 9. Qe2 {[%clk 0:02:52]} 9... Qc7 {[%clk
0:02:56]} 10. Rd1 {[%clk 0:02:41]} 10... O-O {[%clk 0:02:56.3]} 11. h3 {[%clk
0:02:41.4]} 11... b6 {[%clk 0:02:55.5]} 12. e4 {[%clk 0:02:36.4]} 12... cxd4
{[%clk 0:02:55.6]} 13. Nxd4 {[%clk 0:02:36.3]} 13... Nxd4 {[%clk 0:02:54.4]} 14.
Rxd4 {[%clk 0:02:37]} 14... Be5 {[%clk 0:02:55.7]} 15. Rd1 {[%clk 0:02:30.3]}
15... Bb7 {[%clk 0:02:56.4]} 16. f3 {[%clk 0:02:15.4]} 16... Rfc8 {[%clk
0:02:55.4]} 17. Bd3 {[%clk 0:02:04.2]} 17... Nd7 {[%clk 0:02:56.2]} 18. Be3
{[%clk 0:01:57.5]} 18... Nc5 {[%clk 0:02:56.7]} 19. Bc2 {[%clk 0:01:43.6]} 19...
Qe7 {[%clk 0:02:19.2]} 20. Bd4 {[%clk 0:01:27.8]} 20... Bf4 {[%clk 0:02:11.4]}
21. Be3 {[%clk 0:01:23.5]} 21... Bb8 {[%clk 0:01:46.5]} 22. Rd2 {[%clk
0:01:09.9]} 22... Qf6 {[%clk 0:01:45.6]} 23. Rad1 {[%clk 0:01:01.4]} 23... Bc7
{[%clk 0:00:50.2]} 24. a5 {[%clk 0:00:56.4]} 24... Qh4 {[%clk 0:00:33.9]} 25.
axb6 {[%clk 0:00:40.2]} 25... Bxb6 {[%clk 0:00:34.4]} 26. Na4 {[%clk 0:00:20.9]}
26... Nxa4 {[%clk 0:00:30.2]} 27. Bxa4 {[%clk 0:00:21.1]} 27... Bxe3+ {[%clk
0:00:24.4]} 28. Qxe3 {[%clk 0:00:21.8]} 28... Rab8 {[%clk 0:00:15.8]} 29. Rd7
{[%clk 0:00:19.4]} 29... Bc6 {[%clk 0:00:13.5]} 30. Bxc6 {[%clk 0:00:19.4]}
30... Rxc6 {[%clk 0:00:14.5]} 31. Qd2 {[%clk 0:00:17.3]} 31... h6 {[%clk
0:00:14.8]} 32. Rd8+ {[%clk 0:00:17.4]} 32... Rxd8 {[%clk 0:00:15.2]} 33. Qxd8+
{[%clk 0:00:18.4]} 33... Qxd8 {[%clk 0:00:16.8]} 34. Rxd8+ {[%clk 0:00:19.4]}
34... Kh7 {[%clk 0:00:18.4]} 35. Ra8 {[%clk 0:00:19.9]} 35... Rb6 {[%clk
0:00:17.9]} 36. Kh2 {[%clk 0:00:19.7]} 36... Kg6 {[%clk 0:00:18.9]} 37. Ra7
{[%clk 0:00:20.3]} 37... f6 {[%clk 0:00:18.9]} 38. Kg3 {[%clk 0:00:20.5]} 38...
h5 {[%clk 0:00:19.2]} 39. b3 {[%clk 0:00:20.2]} 39... f5 {[%clk 0:00:16.2]} 40.
exf5+ {[%clk 0:00:20.9]} 40... Kxf5 {[%clk 0:00:16.2]} 41. h4 {[%clk 0:00:21.4]}
41... g6 {[%clk 0:00:15.3]} 42. Kf2 {[%clk 0:00:21.5]} 42... Ke5 {[%clk
0:00:16.2]} 43. Rg7 {[%clk 0:00:20.9]} 43... Kf6 {[%clk 0:00:15]} 44. Ra7 {[%clk
0:00:21.4]} 44... e5 {[%clk 0:00:16.1]} 45. g3 {[%clk 0:00:21.4]} 45... Ke6
{[%clk 0:00:16.4]} 46. Rg7 {[%clk 0:00:21.6]} 46... Kd5 {[%clk 0:00:17.2]} 47.
Ra7 {[%clk 0:00:19]} 47... Kd4 {[%clk 0:00:18]} 48. Ke2 {[%clk 0:00:18.6]} 48...
Kc3 {[%clk 0:00:18.4]} 49. Ke3 {[%clk 0:00:18]} 49... Kxb3 {[%clk 0:00:18.7]}
50. Ke4 {[%clk 0:00:18.4]} 50... Kb4 {[%clk 0:00:15.9]} 51. Kxe5 {[%clk
0:00:17.1]} 51... a5 {[%clk 0:00:17.2]} 52. g4 {[%clk 0:00:17]} 52... a4 {[%clk
0:00:17.5]} 53. gxh5 {[%clk 0:00:10.7]} 53... gxh5 {[%clk 0:00:15.4]} 54. Kf4
{[%clk 0:00:11.3]} 54... a3 {[%clk 0:00:14.2]} 55. Rxa3 {[%clk 0:00:04.2]} 55...
Kxa3 {[%clk 0:00:15]} 56. Kg5 {[%clk 0:00:05.6]} 56... Rb5+ {[%clk 0:00:09.4]}
57. Kg6 {[%clk 0:00:06.5]} 57... Kb4 {[%clk 0:00:09.8]} 58. f4 {[%clk
0:00:07.4]} 58... Kc5 {[%clk 0:00:05.9]} 59. f5 {[%clk 0:00:08.7]} 59... Kd6
{[%clk 0:00:07]} 60. f6 {[%clk 0:00:10]} 60... Ke6 {[%clk 0:00:07.8]} 61. Kg7
{[%clk 0:00:07.6]} 61... Rb7+ {[%clk 0:00:08.3]} 62. Kg6 {[%clk 0:00:07]} 62...
Rf7 {[%clk 0:00:09.4]} 63. Kxh5 {[%clk 0:00:07.3]} 63... Kxf6 {[%clk 0:00:10]}
64. Kh6 {[%clk 0:00:07.8]} 64... Rf8 {[%clk 0:00:10]} 65. Kh7 {[%clk 0:00:07.7]}
65... Rf7+ {[%clk 0:00:10.1]} 66. Kh6 {[%clk 0:00:08.5]} 66... Rg7 {[%clk
0:00:10.9]} 67. h5 {[%clk 0:00:09.5]} 67... Rg5 {[%clk 0:00:12]} 0-1